bitfinex/quotes_BTCUSD_20240627
["timestamp","ask_amount","ask_price","bid_price","bid_amount"]
[1719507241172,0.10084,61906.0,61904.0,0.21283903]
[1719507241373,0.10084,61906.0,61905.0,0.00638372]
[1719507241898,0.10084,61906.0,61905.0,0.01638372]
[1719507241899,0.10184,61906.0,61905.0,0.01638372]
[1719507242103,0.10184,61906.0,61905.0,0.01]
[1719507242262,0.10184,61906.0,61905.0,0.2131487]
[1719507242861,0.10284,61906.0,61905.0,0.2231487]
[1719507243190,0.10184,61906.0,61905.0,0.2131487]
[1719507243381,0.10284,61906.0,61905.0,0.2131487]
[1719507243785,0.10184,61906.0,61905.0,0.2131487]
[1719507244186,0.10284,61906.0,61905.0,0.2231487]
[1719507244928,0.10284,61906.0,61905.0,0.20850967]
[1719507247960,0.10284,61906.0,61905.0,0.02638372]
[1719507250273,0.18244,61906.0,61905.0,0.02638372]
[1719507250469,0.18244,61906.0,61905.0,0.02]
[1719507250672,0.25444,61906.0,61905.0,0.02]
[1719507250945,0.34524435,61906.0,61905.0,0.02]
[1719507251143,0.34524435,61906.0,61893.0,0.01463903]
[1719507251144,0.1516,61904.0,61893.0,0.01463903]
[1719507251417,0.2339,61894.0,61891.0,0.18212595]
[1719507251591,0.1,61893.0,61891.0,0.18212595]
[1719507252145,0.1,61893.0,61890.0,0.0845]
[1719507252337,0.1,61893.0,61891.0,0.18212595]
[1719507252538,0.1,61893.0,61891.0,0.18853818]
[1719507253136,0.1,61893.0,61891.0,0.00641223]
[1719507253517,0.1,61893.0,61890.0,0.005]
[1719507253716,0.1,61893.0,61892.0,0.00641013]
[1719507253956,0.1,61893.0,61891.0,0.00641223]
[1719507254128,0.1,61893.0,61892.0,0.00641013]
[1719507255313,0.1,61893.0,61892.0,0.01041013]
[1719507255845,0.1,61893.0,61892.0,0.00641013]
[1719507256010,0.101,61893.0,61892.0,0.00641013]
[1719507256210,0.101,61893.0,61889.0,0.000924]
[1719507256411,0.101,61893.0,61892.0,0.005]
[1719507256619,0.101,61893.0,61892.0,0.01141013]
[1719507256942,0.101,61893.0,61892.0,0.00641013]
[1719507257175,0.103,61893.0,61892.0,0.00641013]
[1719507257346,0.103,61893.0,61889.0,0.000924]
[1719507257551,0.103,61893.0,61892.0,0.00641013]
[1719507257751,0.103,61893.0,61889.0,0.000924]
[1719507257891,0.103,61893.0,61892.0,0.00641013]
[1719507258093,0.103,61893.0,61889.0,0.000924]
[1719507258330,0.103,61893.0,61892.0,0.00641013]
[1719507258331,0.102,61893.0,61892.0,0.00641013]
[1719507258655,0.104,61893.0,61892.0,0.00641013]
[1719507258885,0.104,61893.0,61891.0,0.0887]
[1719507259091,0.102,61893.0,61892.0,0.02104916]
[1719507259292,0.102,61893.0,61892.0,0.39417511]
[1719507259499,0.1,61893.0,61892.0,0.39417511]
[1719507259707,0.101,61893.0,61892.0,0.39417511]
[1719507259940,0.103,61893.0,61892.0,0.39417511]
[1719507260151,0.102,61893.0,61892.0,0.39417511]
[1719507260320,0.101,61893.0,61892.0,0.39417511]
[1719507260874,0.1,61893.0,61892.0,0.39417511]
[1719507261287,0.1,61893.0,61892.0,0.38776498]
[1719507261689,0.1,61893.0,61892.0,0.39417707]
[1719507262135,0.101,61893.0,61892.0,0.39417707]
[1719507262451,0.1,61893.0,61892.0,0.39417707]
[1719507262864,0.101,61893.0,61892.0,0.40717707]
[1719507263870,0.101,61893.0,61892.0,0.40217707]
[1719507264483,0.102,61893.0,61892.0,0.40717707]
[1719507264883,0.102,61893.0,61892.0,0.39253804]
[1719507265035,0.102,61893.0,61892.0,0.40717707]
[1719507265234,0.102,61893.0,61892.0,0.21041209]
[1719507265456,0.102,61893.0,61892.0,0.22500518]
[1719507267085,0.102,61893.0,61892.0,0.12696615]
[1719507267282,0.102,61893.0,61892.0,0.01941209]
[1719507267505,0.09402071,61894.0,61892.0,0.01941209]
[1719507267672,0.09402071,61894.0,61893.0,0.18212595]
[1719507267872,0.09402071,61894.0,61893.0,0.18853595]
[1719507268482,0.03520657,61894.0,61893.0,0.20317498]
[1719507268677,0.2339,61894.0,61893.0,0.20317498]
[1719507269698,0.2349,61894.0,61893.0,0.20917498]
[1719507269960,0.3359,61894.0,61893.0,0.21617498]
[1719507270968,0.3359,61894.0,61893.0,0.20153595]
[1719507271172,0.3359,61894.0,61893.0,0.21617498]
[1719507271382,0.3359,61894.0,61893.0,0.20153595]
[1719507271566,0.3359,61894.0,61893.0,0.21617498]
[1719507272651,0.102,61894.0,61893.0,0.21617498]
[1719507272858,0.0956,61894.0,61893.0,0.21617498]
[1719507273056,0.1956,61894.0,61893.0,0.21617498]
[1719507274155,0.0956,61894.0,61893.0,0.21617498]
[1719507281989,0.0956,61894.0,61893.0,0.01941]
[1719507284623,0.0956,61894.0,61893.0,0.03404903]
[1719507285503,0.0956,61894.0,61893.0,0.01941]
[1719507285703,0.0956,61894.0,61893.0,0.21617498]
[1719507287143,0.002,61894.0,61893.0,0.41307498]
[1719507287345,0.0956,61894.0,61893.0,0.41307498]
[1719507297573,0.0956,61894.0,61893.0,0.41399898]
[1719507297977,0.09644,61894.0,61893.0,0.41399898]
[1719507302913,0.09644,61894.0,61893.0,0.21709898]
[1719507303088,0.19644,61894.0,61893.0,0.21709898]
[1719507303288,0.10284,61894.0,61893.0,0.21709898]
[1719507303530,0.19644,61894.0,61893.0,0.21709898]
[1719507304194,0.09644,61894.0,61893.0,0.21709898]
[1719507308837,0.00284,61894.0,61893.0,0.21709898]
[1719507309078,0.09644,61894.0,61893.0,0.21709898]
[1719507309368,0.17194,61894.0,61893.0,0.020334]
[1719507309604,0.27194,61894.0,61893.0,0.020334]
[1719507310353,0.1936,61894.0,61889.0,0.000924]
[1719507310601,0.1687,61894.0,61893.0,0.00616437]
[1719507310950,0.1687,61894.0,61878.0,0.13923195]
[1719507310951,0.0687,61889.0,61878.0,0.13923195]
[1719507310953,0.0687,61889.0,61876.0,0.01463903]
[1719507311220,0.0687,61889.0,61873.0,0.13923195]
[1719507311221,0.0687,61888.0,61878.0,0.48782074]
[1719507311406,0.0936,61879.0,61877.0,0.00619791]
[1719507311611,0.0687,61878.0,61872.0,0.01463903]
[1719507311817,0.0936,61875.0,61871.0,0.13923195]
[1719507312073,0.0936,61872.0,61871.0,0.13923195]
[1719507312272,0.0936,61872.0,61871.0,0.15387098]
[1719507312477,0.0936,61872.0,61871.0,0.16008147]
[1719507314247,0.0946,61872.0,61871.0,0.16208147]
[1719507314776,0.0946,61872.0,61871.0,0.16308147]
[1719507315002,0.0936,61872.0,61871.0,0.16008147]
[1719507315259,0.0936,61872.0,61871.0,0.16308147]
[1719507316195,0.0936,61872.0,61871.0,0.16408147]
[1719507320930,0.1,61877.0,61873.0,0.13923195]
[1719507321123,0.00035642,61887.0,61881.0,0.01463903]
[1719507321124,0.0687,61885.0,61881.0,0.01463903]
[1719507321336,0.158412,61882.0,61881.0,0.01463903]
[1719507321546,0.1,61882.0,61881.0,0.15387098]
[1719507321767,0.1,61882.0,61881.0,0.34357098]
[1719507322505,0.1936,61882.0,61881.0,0.34357098]
[1719507322738,0.1,61884.0,61883.0,0.15087098]
[1719507322966,0.013,61885.0,61884.0,0.15087098]
[1719507323646,0.03466537,61888.0,61887.0,0.15087098]
[1719507323880,0.1,61889.0,61888.0,0.15087098]
[1719507324086,0.1,61889.0,61888.0,0.14987098]
[1719507324297,0.1,61898.0,61895.0,0.00763903]
[1719507324537,0.1,61898.0,61893.0,0.00763903]
[1719507324779,0.1,61898.0,61891.0,0.00263903]
[1719507324780,0.064797,61896.0,61891.0,0.00263903]
[1719507325700,0.2339,61894.0,61891.0,0.00263903]
[1719507325918,0.1,61893.0,61889.0,0.14087098]
[1719507326151,0.1,61893.0,61890.0,0.00263903]
[1719507326403,0.0687,61892.0,61888.0,0.01]
[1719507326598,0.2339,61889.0,61888.0,0.01]
[1719507326843,0.35126097,61889.0,61880.0,0.13823195]
[1719507327049,0.18706097,61889.0,61888.0,0.007]
[1719507327219,0.42096097,61889.0,61888.0,0.007]
[1719507327486,0.01736097,61888.0,61880.0,0.13823195]
[1719507327697,0.2339,61881.0,61880.0,0.13823195]
[1719507327896,0.3339,61881.0,61880.0,0.13823195]
[1719507328303,0.3339,61881.0,61879.0,0.00263903]
[1719507328544,0.1,61880.0,61879.0,0.00263903]
[1719507329417,0.1,61880.0,61876.0,0.14087098]
[1719507329649,0.1,61880.0,61872.0,0.14087098]
[1719507329887,0.1,61880.0,61873.0,0.00263903]
[1719507329888,0.2339,61874.0,61873.0,0.00263903]
[1719507330107,0.3339,61874.0,61873.0,0.00263903]
[1719507331328,0.3339,61874.0,61873.0,0.00763903]
[1719507331805,0.3339,61874.0,61873.0,0.01163903]
[1719507332716,0.1,61874.0,61873.0,0.23117444]
[1719507332931,0.064812,61882.0,61881.0,0.00263903]
[1719507333145,0.2339,61883.0,61881.0,0.00263903]
[1719507333347,0.1,61882.0,61881.0,0.14087098]
[1719507333764,0.1,61882.0,61881.0,0.14706513]
[1719507334263,0.106,61882.0,61881.0,0.14806513]
[1719507334899,0.006,61882.0,61881.0,0.14806513]
[1719507335128,0.106,61882.0,61881.0,0.14806513]
[1719507336060,0.106,61882.0,61881.0,0.14187098]
[1719507336257,0.106,61882.0,61881.0,0.00363903]
[1719507336457,0.106,61882.0,61881.0,0.00983235]
[1719507336700,0.106,61882.0,61881.0,0.1480643]
[1719507337170,0.113,61882.0,61881.0,0.1490643]
[1719507338093,0.113,61882.0,61881.0,0.34470552]
[1719507338310,0.013,61882.0,61881.0,0.34470552]
[1719507339157,0.013,61882.0,61881.0,0.36470552]
[1719507340513,0.006,61882.0,61881.0,0.36370552]
[1719507340891,0.006,61882.0,61881.0,0.36470552]
[1719507341070,0.03410143,61891.0,61886.0,0.13823195]
[1719507341273,0.1,61893.0,61891.0,0.00258025]
[1719507341595,0.23386816,61904.0,61891.0,0.00258025]
[1719507341596,0.064794,61901.0,61900.0,0.00258025]
[1719507341804,0.23474,61906.0,61900.0,0.00873048]
[1719507341996,0.23474,61906.0,61904.0,0.00258025]
[1719507342172,0.23474,61906.0,61903.0,0.00258025]
[1719507342381,0.064788,61905.0,61898.0,0.1308122]
[1719507342601,0.2339,61901.0,61899.0,0.00615225]
[1719507342812,0.2339,61901.0,61898.0,0.1308122]
[1719507343015,0.2339,61901.0,61900.0,0.00615015]
[1719507343186,0.2339,61901.0,61899.0,0.00615225]
[1719507343535,0.2339,61901.0,61898.0,0.1308122]
[1719507343829,0.2339,61901.0,61899.0,0.00615225]
[1719507344054,0.1,61900.0,61899.0,0.00615225]
[1719507344170,0.1,61900.0,61898.0,0.12396445]
[1719507344366,0.1,61900.0,61899.0,0.00591562]
[1719507344616,0.18130346,61900.0,61891.0,0.12496445]
[1719507344823,0.2339,61892.0,61891.0,0.12496445]
[1719507345029,0.2339,61892.0,61891.0,0.12396445]
[1719507345030,0.3339,61892.0,61891.0,0.12396445]
[1719507346204,0.3339,61892.0,61888.0,0.12396445]
[1719507346415,0.1,61891.0,61888.0,0.12396445]
[1719507349290,0.1,61891.0,61888.0,0.14796445]
[1719507349848,0.1,61891.0,61890.0,0.12396445]
[1719507350101,0.2339,61892.0,61891.0,0.12396445]
[1719507350302,0.3339,61892.0,61891.0,0.12396445]
[1719507351732,0.3339,61892.0,61891.0,0.23566445]
[1719507351963,0.3339,61892.0,61891.0,0.24136452]
[1719507352575,0.3339,61892.0,61891.0,0.25236452]
[1719507354041,0.3339,61892.0,61891.0,0.26236452]
[1719507354553,0.1,61892.0,61891.0,0.5075035]
[1719507354774,0.2339,61911.0,61901.0,0.12396445]
[1719507354985,0.02535594,61908.0,61902.0,0.12964114]
[1719507355225,0.064785,61907.0,61904.0,0.12396445]
[1719507355344,0.1,61910.0,61904.0,0.12396445]
[1719507355345,0.03360811,61906.0,61904.0,0.12396445]
[1719507355550,0.00084,61906.0,61905.0,0.00567041]
[1719507355918,0.00084,61906.0,61905.0,0.12396445]
[1719507356127,0.00084,61906.0,61905.0,0.12963486]
[1719507356128,0.00584,61906.0,61905.0,0.12963486]
[1719507356281,0.00784,61906.0,61905.0,0.12963486]
[1719507356704,0.00084,61906.0,61905.0,0.12963486]
[1719507357104,0.00084,61906.0,61905.0,0.13663486]
[1719507357488,0.00084,61906.0,61905.0,0.14363486]
[1719507360342,0.23474,61906.0,61905.0,0.01967041]
[1719507360538,0.33474,61906.0,61905.0,0.01967041]
[1719507365935,0.10084,61906.0,61905.0,0.14363486]
[1719507366160,0.10084,61906.0,61905.0,0.33483486]
[1719507366161,0.00084,61906.0,61905.0,0.33483486]
[1719507368332,0.13668894,61916.0,61905.0,0.33483486]
[1719507368559,0.2339,61914.0,61911.0,0.12396445]
[1719507368761,0.2339,61914.0,61912.0,0.00565484]
[1719507368981,0.2339,61914.0,61911.0,0.12396445]
[1719507369202,0.2339,61914.0,61912.0,0.00565484]
[1719507369409,0.2339,61914.0,61911.0,0.12396445]
[1719507369611,0.2339,61914.0,61912.0,0.00565484]
[1719507369781,0.2339,61914.0,61911.0,0.12396445]
[1719507369996,0.2339,61914.0,61912.0,0.00565436]
[1719507370201,0.2339,61914.0,61911.0,0.12396445]
[1719507370376,0.2359,61914.0,61912.0,0.00565436]
[1719507370736,0.2359,61914.0,61911.0,0.12396445]
[1719507370737,0.1,61913.0,61911.0,0.12396445]
[1719507371351,0.1,61913.0,61912.0,0.1119]
[1719507372272,0.1,61913.0,61912.0,0.00565436]
[1719507372607,0.1,61913.0,61911.0,0.12396445]
[1719507372840,0.1,61913.0,61912.0,0.00565436]
[1719507373364,0.1,61913.0,61911.0,0.12396445]
[1719507373574,0.1,61913.0,61912.0,0.00565436]
[1719507373916,0.102,61913.0,61911.0,0.12396445]
[1719507374117,0.102,61913.0,61912.0,0.00565436]
[1719507374577,0.102,61913.0,61911.0,0.12396445]
[1719507374776,0.1,61913.0,61912.0,0.00565436]
[1719507374979,0.102,61913.0,61912.0,0.00565436]
[1719507375183,0.102,61913.0,61911.0,0.12396445]
[1719507375390,0.103,61913.0,61912.0,0.00565436]
[1719507375594,0.103,61913.0,61911.0,0.12396445]
[1719507375814,0.103,61913.0,61912.0,0.09005436]
[1719507376025,0.002,61913.0,61912.0,0.09005436]
[1719507376417,0.003,61913.0,61912.0,0.09005436]
[1719507377002,0.003,61913.0,61912.0,0.21401881]
[1719507377166,0.003,61913.0,61912.0,0.31821881]
[1719507378332,0.0084,61920.0,61917.0,0.12396445]
[1719507378549,0.04183447,61920.0,61917.0,0.12396445]
[1719507378752,0.04183447,61920.0,61918.0,0.00563971]
[1719507378753,0.0084,61920.0,61918.0,0.00563971]
[1719507379126,0.0084,61920.0,61919.0,0.00563762]
[1719507379348,0.0084,61920.0,61917.0,0.12396445]
[1719507379572,0.0084,61920.0,61917.0,0.13096445]
[1719507379769,0.0084,61920.0,61919.0,0.12396445]
[1719507380202,0.0084,61920.0,61919.0,0.12960207]
[1719507381647,0.0084,61920.0,61919.0,0.13760207]
[1719507382177,0.0084,61920.0,61919.0,0.14460207]
[1719507384385,0.0084,61920.0,61919.0,0.35520207]
[1719507385065,0.0084,61920.0,61919.0,0.51754105]
[1719507386367,0.0084,61920.0,61919.0,0.51054105]
[1719507386725,0.0084,61920.0,61919.0,0.51654105]
[1719507387543,0.0084,61920.0,61919.0,0.53054105]
[1719507389501,0.0084,61920.0,61919.0,0.51654105]
[1719507389820,0.0084,61920.0,61919.0,0.53054105]
[1719507390447,0.0084,61920.0,61919.0,0.70254105]
[1719507390878,0.0084,61920.0,61919.0,0.73054105]
[1719507391075,0.0084,61920.0,61919.0,0.71654105]
[1719507391375,0.0084,61922.0,61921.0,0.34096445]
[1719507391576,0.0084,61922.0,61921.0,0.50330343]
[1719507391782,0.0084,61922.0,61921.0,0.50893331]
[1719507393816,0.0084,61922.0,61921.0,0.52293331]
[1719507393973,0.0084,61922.0,61921.0,0.50893331]
[1719507394186,0.0084,61922.0,61921.0,0.52293331]
[1719507394381,0.0084,61922.0,61921.0,0.53693331]
[1719507396404,0.0084,61922.0,61921.0,0.52293331]
[1719507396688,0.0084,61922.0,61921.0,0.53693331]
[1719507397091,0.0084,61922.0,61921.0,0.52293331]
[1719507397508,0.0084,61922.0,61921.0,0.53693331]
[1719507405842,0.0084,61922.0,61921.0,0.15759433]
[1719507407074,0.0084,61922.0,61921.0,0.14359433]
[1719507407550,0.0084,61922.0,61921.0,0.15759433]
[1719507408099,0.0084,61922.0,61921.0,0.14359433]
[1719507409036,0.0084,61922.0,61921.0,0.15759433]
[1719507409909,0.0765,61922.0,61921.0,0.15759433]
[1719507411650,0.0765,61922.0,61921.0,0.03362988]
[1719507411848,0.0815,61922.0,61921.0,0.03362988]
[1719507412050,0.0815,61922.0,61921.0,0.028]
[1719507412208,0.1015,61922.0,61921.0,0.028]
[1719507412411,0.1815,61922.0,61921.0,0.028]
[1719507412562,0.1815,61922.0,61921.0,0.01395739]
[1719507413400,0.0731,61921.0,61916.0,0.000924]
[1719507413606,0.2339,61917.0,61916.0,0.000924]
[1719507413802,0.402,61917.0,61916.0,0.000924]
[1719507414529,0.1681,61917.0,61916.0,0.000924]
[1719507414835,0.1,61917.0,61916.0,0.12488845]
[1719507415033,0.0084,61922.0,61920.0,0.12396445]
[1719507415171,0.1084,61922.0,61920.0,0.12396445]
[1719507415375,0.0731,61921.0,61916.0,0.12488845]
[1719507415572,0.001,61917.0,61916.0,0.12488845]
[1719507416176,0.2339,61917.0,61916.0,0.000924]
[1719507416394,0.307,61917.0,61916.0,0.000924]
[1719507416595,0.427,61917.0,61916.0,0.000924]
[1719507416971,0.45,61917.0,61916.0,0.000924]
[1719507417159,0.0731,61906.0,61896.0,0.12396445]
[1719507417282,0.0731,61906.0,61902.0,0.48782074]
[1719507417283,0.0931,61906.0,61902.0,0.48782074]
[1719507417496,0.0931,61906.0,61896.0,0.12396445]
[1719507417497,0.2339,61903.0,61896.0,0.12396445]
[1719507417695,0.043,61905.0,61896.0,0.12396445]
[1719507417696,0.2339,61897.0,61896.0,0.12396445]
[1719507417950,0.3339,61897.0,61896.0,0.12396445]
[1719507418776,0.3339,61897.0,61896.0,0.13696445]
[1719507418977,0.3349,61897.0,61896.0,0.15096445]
[1719507419335,0.3349,61897.0,61896.0,0.33876445]
[1719507419336,0.101,61897.0,61896.0,0.33876445]
[1719507419550,0.001,61897.0,61896.0,0.33876445]
[1719507419700,0.00095909,61897.0,61896.0,0.33876445]
[1719507420307,0.00095909,61897.0,61896.0,0.32576445]
[1719507420692,0.00195909,61897.0,61896.0,0.33976445]
[1719507420966,0.00195909,61897.0,61896.0,0.50210343]
[1719507421088,0.00095909,61897.0,61896.0,0.50810343]
[1719507421289,0.00095909,61897.0,61896.0,0.48810343]
[1719507421493,0.001,61897.0,61896.0,0.50110343]
[1719507421944,0.002,61897.0,61896.0,0.51010343]
[1719507422251,0.1,61910.0,61897.0,0.02]
[1719507422450,0.1,61910.0,61898.0,0.1655697]
[1719507423251,0.1,61910.0,61908.0,0.12396445]
[1719507423498,0.1,61910.0,61907.0,0.12396445]
[1719507423691,0.1,61910.0,61905.0,0.12396445]
[1719507424401,0.2339,61906.0,61905.0,0.12396445]
[1719507424631,0.3339,61906.0,61905.0,0.12396445]
[1719507426418,0.3339,61906.0,61905.0,0.12963203]
[1719507427484,0.4058,61906.0,61905.0,0.00566758]
[1719507427879,0.4048,61906.0,61901.0,0.12396445]
[1719507428126,0.1,61905.0,61902.0,0.00567387]
[1719507428730,0.2339,61903.0,61902.0,0.00567387]
[1719507429377,0.2339,61903.0,61900.0,0.12396445]
[1719507429506,0.2339,61903.0,61902.0,0.00567387]
[1719507430425,0.2339,61903.0,61900.0,0.12396445]
[1719507430881,0.1,61902.0,61901.0,0.00567532]
[1719507431243,0.1,61902.0,61900.0,0.12396445]
[1719507431621,0.1,61902.0,61901.0,0.00567532]
[1719507431961,0.1,61902.0,61900.0,0.12896445]
[1719507432138,0.1,61902.0,61901.0,0.00567532]
[1719507432497,0.1,61902.0,61895.0,0.12396445]
[1719507432689,0.1,61902.0,61901.0,0.00567532]
[1719507432910,0.1,61902.0,61901.0,0.008]
[1719507432911,0.1713,61902.0,61901.0,0.008]
[1719507433152,0.1903,61902.0,61893.0,0.12396445]
[1719507433333,0.2339,61895.0,61893.0,0.12396445]
[1719507433488,0.1,61894.0,61891.0,0.12396445]
[1719507433689,0.1,61894.0,61881.0,0.48874474]
[1719507433690,0.0703,61893.0,61887.0,0.12396445]
[1719507433890,0.2339,61889.0,61883.0,0.12396445]
[1719507434076,0.2339,61884.0,61883.0,0.12396445]
[1719507434291,0.2339,61884.0,61881.0,0.12488845]
[1719507434491,0.1,61883.0,61881.0,0.000924]
[1719507435140,0.1659,61883.0,61881.0,0.000924]
[1719507437225,0.1,61883.0,61881.0,0.000924]
[1719507439250,0.1,61883.0,61882.0,0.12396445]
[1719507439654,0.101,61883.0,61882.0,0.12396445]
[1719507439859,0.27260346,61883.0,61881.0,0.000924]
[1719507440071,0.043,61882.0,61881.0,0.000924]
[1719507440417,0.05895848,61882.0,61881.0,0.000924]
[1719507440892,0.0799152,61882.0,61881.0,0.000924]
[1719507441914,0.11348712,61888.0,61881.0,0.000924]
[1719507442075,0.2339,61882.0,61881.0,0.000924]
[1719507443371,0.2339,61882.0,61881.0,0.001924]
[1719507443781,0.2339,61882.0,61881.0,0.000924]
[1719507443987,0.3399,61882.0,61881.0,0.000924]
[1719507446275,0.36526602,61882.0,61881.0,0.000924]
[1719507446475,0.36226602,61882.0,61881.0,0.000924]
[1719507447260,0.36526602,61882.0,61881.0,0.000924]
[1719507449818,0.36226602,61882.0,61881.0,0.000924]
[1719507450229,0.36426602,61882.0,61881.0,0.000924]
[1719507450632,0.62417382,61882.0,61881.0,0.000924]
[1719507450833,0.69175808,61882.0,61881.0,0.000924]
[1719507451441,0.76779363,61882.0,61881.0,0.000924]
[1719507451666,0.56779363,61882.0,61881.0,0.000924]
[1719507452306,0.47951981,61882.0,61881.0,0.000924]
[1719507453593,0.38048426,61882.0,61881.0,0.000924]
[1719507453769,0.3369,61882.0,61881.0,0.000924]
[1719507454811,0.3339,61882.0,61881.0,0.000924]
[1719507454974,0.3359,61882.0,61881.0,0.000924]
[1719507455187,0.3359,61882.0,61881.0,0.082624]
[1719507455188,0.3369,61882.0,61881.0,0.082624]
[1719507455383,0.3359,61882.0,61881.0,0.08882678]
[1719507455717,0.3359,61882.0,61881.0,0.09082678]
[1719507456787,0.3359,61882.0,61881.0,0.08882678]
[1719507456967,0.3339,61882.0,61881.0,0.08882678]
[1719507457178,0.3339,61882.0,61881.0,0.09182678]
[1719507457376,0.3339,61882.0,61881.0,0.21579123]
[1719507457743,0.3339,61882.0,61881.0,0.21279123]
[1719507458155,0.3349,61882.0,61881.0,0.21979123]
[1719507458540,0.3339,61882.0,61881.0,0.21279123]
[1719507459346,0.3349,61882.0,61881.0,0.21879123]
[1719507459601,0.3339,61882.0,61881.0,0.21279123]
[1719507460030,0.3349,61882.0,61881.0,0.22079123]
[1719507460232,0.3349,61882.0,61881.0,0.01912678]
[1719507460638,0.3349,61882.0,61881.0,0.008924]
[1719507460996,0.3359,61882.0,61881.0,0.015924]
[1719507461200,0.3359,61882.0,61881.0,0.01587509]
[1719507462017,0.02699884,61882.0,61881.0,0.01587509]
[1719507462419,0.02699884,61882.0,61881.0,0.20520073]
[1719507462420,0.002,61882.0,61881.0,0.20520073]
[1719507462632,0.002,61882.0,61881.0,0.19947509]
[1719507462977,0.002,61882.0,61881.0,0.20520073]
[1719507464269,0.002,61882.0,61881.0,0.02160073]
[1719507464526,0.102,61882.0,61881.0,0.02160073]
[1719507465066,0.102,61882.0,61881.0,0.01587509]
[1719507467991,0.002,61882.0,61881.0,0.12859999]
[1719507469766,0.002,61882.0,61881.0,0.02159999]
[1719507470174,0.2359,61882.0,61881.0,0.02159999]
[1719507470390,0.3359,61882.0,61881.0,0.02159999]
[1719507475289,0.3359,61882.0,61881.0,0.01587509]
[1719507476336,0.3359,61882.0,61881.0,0.01580283]
[1719507478154,0.61093555,61882.0,61881.0,0.00880283]
[1719507478427,0.67472664,61882.0,61881.0,0.00880283]
[1719507478611,0.67772664,61882.0,61881.0,0.00880283]
[1719507478985,0.67472664,61882.0,61881.0,0.00880283]
[1719507479190,0.67372664,61882.0,61881.0,0.00080283]
[1719507479392,0.67672664,61882.0,61881.0,0.00080283]
[1719507480569,0.47672664,61882.0,61881.0,0.00080283]
[1719507481452,0.12755739,61882.0,61881.0,0.00080283]
[1719507481668,0.0867663,61882.0,61881.0,0.00080283]
[1719507481875,0.2629,61882.0,61881.0,0.00080283]
[1719507482745,0.2629,61882.0,61881.0,0.00652971]
[1719507482951,0.2629,61882.0,61881.0,0.00080283]
[1719507483113,0.2629,61882.0,61881.0,0.00700696]
[1719507483311,0.2629,61882.0,61881.0,0.00080283]
[1719507483594,0.2399,61882.0,61881.0,0.00080283]
[1719507483800,0.106,61882.0,61881.0,0.00700696]
[1719507483995,0.106,61882.0,61881.0,0.20920283]
[1719507484195,0.106,61882.0,61881.0,0.18920283]
[1719507484444,0.106,61882.0,61881.0,0.19492944]
[1719507484825,0.006,61882.0,61881.0,0.19492944]
[1719507485035,0.006,61882.0,61881.0,0.21492944]
[1719507485256,0.003,61882.0,61881.0,0.21492944]
[1719507485636,0.004,61882.0,61881.0,0.21492944]
[1719507485835,0.001,61882.0,61881.0,0.21492944]
[1719507486269,0.004,61882.0,61881.0,0.21492944]
[1719507486863,0.003,61882.0,61881.0,0.21492944]
[1719507487071,0.03218366,61888.0,61881.0,0.19492944]
[1719507487267,0.1,61889.0,61881.0,0.19492944]
[1719507487545,0.2339,61886.0,61881.0,0.18920283]
[1719507487693,0.1,61885.0,61881.0,0.18920283]
[1719507487895,0.1,61885.0,61882.0,0.00572451]
[1719507488279,0.09994797,61885.0,61882.0,0.00572451]
[1719507488890,0.09994797,61885.0,61884.0,0.1047]
[1719507489116,0.03022903,61889.0,61885.0,0.1013]
[1719507489292,0.2387416,61890.0,61885.0,0.1213]
[1719507489491,0.2387416,61890.0,61885.0,0.1013]
[1719507489710,0.4726416,61891.0,61886.0,0.00571546]
[1719507490138,0.002,61888.0,61886.0,0.00571546]
[1719507490668,0.1,61890.0,61886.0,0.00571546]
[1719507491160,0.1,61890.0,61887.0,0.02]
[1719507491392,0.1,61890.0,61888.0,0.1942]
[1719507491545,0.1,61890.0,61888.0,0.19991005]
[1719507492225,0.03222342,61891.0,61889.0,0.2142]
[1719507492437,0.03222342,61891.0,61889.0,0.1942]
[1719507492639,0.03222342,61891.0,61890.0,0.00618135]
[1719507492640,0.002,61891.0,61890.0,0.00618135]
[1719507493041,0.1,61896.0,61890.0,0.00618135]
[1719507493557,0.2339,61891.0,61890.0,0.00618135]
[1719507493775,0.3569,61891.0,61890.0,0.00618135]
[1719507493948,0.5954712,61891.0,61886.0,0.002]
[1719507494197,0.36151468,61890.0,61886.0,0.002]
[1719507494398,0.36151468,61890.0,61887.0,0.00618816]
[1719507494601,0.33851468,61890.0,61887.0,0.00618816]
[1719507495009,0.33851468,61890.0,61883.0,0.1916]
[1719507495222,0.2339,61886.0,61883.0,0.1916]
[1719507495439,0.1,61885.0,61883.0,0.1916]
[1719507495693,0.1,61885.0,61883.0,0.2116]
[1719507496372,0.1,61885.0,61883.0,0.1916]
[1719507496574,0.1,61888.0,61883.0,0.1916]
[1719507497494,0.1,61888.0,61883.0,0.1986]
[1719507497694,0.001,61885.0,61883.0,0.1986]
[1719507497904,0.1,61888.0,61883.0,0.1916]
[1719507498323,0.1,61888.0,61883.0,0.1956]
[1719507499473,0.33870342,61888.0,61883.0,0.1956]
[1719507499673,0.33870342,61888.0,61883.0,0.1986]
[1719507500857,0.33870342,61888.0,61883.0,0.2186]
[1719507501056,0.33870342,61888.0,61883.0,0.1986]
[1719507501634,0.33870342,61888.0,61883.0,0.2186]
[1719507501848,0.33870342,61888.0,61883.0,0.1326]
[1719507502033,0.33870342,61888.0,61885.0,0.02]
[1719507502415,0.33874472,61888.0,61884.0,0.21136445]
[1719507502845,0.1,61887.0,61884.0,0.21136445]
[1719507503045,0.02752177,61888.0,61884.0,0.21136445]
[1719507503459,0.02752177,61888.0,61885.0,0.002]
[1719507503708,0.02752177,61888.0,61885.0,0.005]
[1719507503908,0.2339,61889.0,61885.0,0.002]
[1719507504970,0.1,61888.0,61885.0,0.002]